[Event "Live Chess"]
[Site "Chess.com"]
[Date "2024.06.01"]
[Round "-"]
[White "LanceMaster23"]
[Black "NeilDruggan73"]
[Result "0-1"]
[WhiteElo "1795"]
[BlackElo "1728"]
[TimeControl "300"]
[EndTime "12:00:56 PDT"]
[Termination "NeilDruggan73 won by resignation"]

1. Nf3 {[%clk 0:04:58.1]} 1... Nf6 {[%clk 0:04:57.1]} 2. d4 {[%clk 0:04:57.1]}
2... g6 {[%clk 0:04:55.9]} 3. Bf4 {[%clk 0:04:56.5]} 3... Bg7 {[%clk 0:04:55.2]}
4. e3 {[%clk 0:04:55.9]} 4... d6 {[%clk 0:04:54.3]} 5. Be2 {[%clk 0:04:54.7]}
5... O-O {[%clk 0:04:52.7]} 6. O-O {[%clk 0:04:54.2]} 6... Nh5 {[%clk
0:04:50.2]} 7. Bg3 {[%clk 0:04:52.8]} 7... Nxg3 {[%clk 0:04:48.4]} 8. hxg3
{[%clk 0:04:52.7]} 8... c6 {[%clk 0:04:45.6]} 9. c3 {[%clk 0:04:51.9]} 9... b5
{[%clk 0:04:43.1]} 10. a4 {[%clk 0:04:50.3]} 10... Bd7 {[%clk 0:04:34.3]} 11.
axb5 {[%clk 0:04:48.1]} 11... cxb5 {[%clk 0:04:33.2]} 12. Nbd2 {[%clk
0:04:44.4]} 12... a5 {[%clk 0:04:29.7]} 13. Re1 {[%clk 0:04:33.3]} 13... Bc6
{[%clk 0:04:25]} 14. Qc2 {[%clk 0:04:28.8]} 14... Nd7 {[%clk 0:04:22.7]} 15. e4
{[%clk 0:04:17.4]} 15... f5 {[%clk 0:04:13.9]} 16. d5 {[%clk 0:04:10.1]} 16...
Bb7 {[%clk 0:04:03.3]} 17. Ng5 {[%clk 0:04:05.7]} 17... b4 {[%clk 0:03:55.1]}
18. Ne6 {[%clk 0:04:03.9]} 18... Qc8 {[%clk 0:03:52.2]} 19. Nxf8 {[%clk
0:03:43.4]} 19... Kxf8 {[%clk 0:03:50.3]} 20. exf5 {[%clk 0:03:40.6]} 20... Bxd5
{[%clk 0:03:41.8]} 21. fxg6 {[%clk 0:03:36.9]} 21... h6 {[%clk 0:03:40.4]} 22.
Qf5+ {[%clk 0:03:32.2]} 22... Nf6 {[%clk 0:03:38.7]} 23. c4 {[%clk 0:03:24.7]}
23... Qxf5 {[%clk 0:03:36.4]} 24. cxd5 {[%clk 0:03:13.8]} 24... Ng4 {[%clk
0:03:12.7]} 25. Bf3 {[%clk 0:03:02.6]} 25... Bd4 {[%clk 0:03:04.3]} 26. Re2
{[%clk 0:02:51.3]} 26... Qh5 {[%clk 0:02:44.9]} 27. Bxg4 {[%clk 0:02:45]} 27...
Qxg4 {[%clk 0:02:43.5]} 28. Nf3 {[%clk 0:02:44.3]} 28... Rc8 {[%clk 0:02:39.3]}
29. Rxa5 {[%clk 0:02:37.9]} 29... Rc1+ {[%clk 0:02:34.6]} 30. Re1 {[%clk
0:01:44.6]} 30... Rxe1+ {[%clk 0:02:32]} 31. Nxe1 {[%clk 0:01:44.1]} 31... Qxg3
{[%clk 0:02:02.4]} 32. Nf3 {[%clk 0:01:17.7]} 32... Qxf2+ {[%clk 0:01:58.1]} 33.
Kh2 {[%clk 0:01:16.4]} 33... Be5+ {[%clk 0:01:55]} 34. Nxe5 {[%clk 0:01:08.3]}
34... dxe5 {[%clk 0:01:53.7]} 35. Rb5 {[%clk 0:00:57.1]} 35... Qf4+ {[%clk
0:01:47.5]} 36. Kg1 {[%clk 0:00:56.3]} 36... Kg7 {[%clk 0:01:44.3]} 37. Rb7
{[%clk 0:00:48.7]} 37... Kxg6 {[%clk 0:01:36.4]} 38. Rxe7 {[%clk 0:00:44.8]}
38... Qd4+ {[%clk 0:01:34.6]} 39. Kf1 {[%clk 0:00:40.4]} 39... Qf4+ {[%clk
0:01:32.9]} 40. Kg1 {[%clk 0:00:37.7]} 40... Qc1+ {[%clk 0:01:26]} 41. Kf2
{[%clk 0:00:34.7]} 41... Qxb2+ {[%clk 0:01:23.6]} 42. Kf3 {[%clk 0:00:28.7]}
42... Qc3+ {[%clk 0:01:20.6]} 43. Kf2 {[%clk 0:00:24.7]} 43... Qc5+ {[%clk
0:01:19.1]} 44. Kg3 {[%clk 0:00:19]} 44... Qxe7 {[%clk 0:01:17.1]} 0-1

[Event "Live Chess"]
[Site "Chess.com"]
[Date "2024.06.01"]
[Round "-"]
[White "KeithArkell"]
[Black "cymbalshift"]
[Result "1-0"]
[WhiteElo "2501"]
[BlackElo "1787"]
[TimeControl "300"]
[EndTime "12:01:14 PDT"]
[Termination "KeithArkell won by resignation"]

1. d4 {[%clk 0:04:58]} 1... Nf6 {[%clk 0:04:58.2]} 2. Nf3 {[%clk 0:04:57.2]}
2... e6 {[%clk 0:04:56.2]} 3. c4 {[%clk 0:04:56.9]} 3... c5 {[%clk 0:04:55.3]}
4. d5 {[%clk 0:04:56.1]} 4... exd5 {[%clk 0:04:55.2]} 5. cxd5 {[%clk 0:04:55.5]}
5... d6 {[%clk 0:04:54.4]} 6. Nc3 {[%clk 0:04:55.4]} 6... g6 {[%clk 0:04:53.7]}
7. Nd2 {[%clk 0:04:54.9]} 7... Bg7 {[%clk 0:04:51.8]} 8. Nc4 {[%clk 0:04:54.6]}
8... O-O {[%clk 0:04:50.7]} 9. Bf4 {[%clk 0:04:54.2]} 9... Ne8 {[%clk
0:04:46.8]} 10. g3 {[%clk 0:04:51.4]} 10... Na6 {[%clk 0:04:43.1]} 11. Bg2
{[%clk 0:04:49.1]} 11... Nac7 {[%clk 0:04:39.7]} 12. a4 {[%clk 0:04:48.3]} 12...
a6 {[%clk 0:04:38.4]} 13. a5 {[%clk 0:04:47.1]} 13... Rb8 {[%clk 0:04:37.7]} 14.
O-O {[%clk 0:04:45.5]} 14... b5 {[%clk 0:04:35.8]} 15. axb6 {[%clk 0:04:44.4]}
15... Nb5 {[%clk 0:04:24.3]} 16. Qd2 {[%clk 0:04:39.2]} 16... Nd4 {[%clk
0:03:56.3]} 17. Ra3 {[%clk 0:04:35.9]} 17... Rxb6 {[%clk 0:03:46.7]} 18. Nxb6
{[%clk 0:04:30.2]} 18... Qxb6 {[%clk 0:03:46.6]} 19. e3 {[%clk 0:04:13.1]} 19...
Nb3 {[%clk 0:03:34.6]} 20. Qc2 {[%clk 0:04:12.1]} 20... c4 {[%clk 0:03:33.8]}
21. Rd1 {[%clk 0:03:55.3]} 21... Bg4 {[%clk 0:03:25.7]} 22. Re1 {[%clk
0:03:48.4]} 22... Nf6 {[%clk 0:03:17.9]} 23. h3 {[%clk 0:03:46.9]} 23... Bf5
{[%clk 0:03:16.2]} 24. e4 {[%clk 0:03:45.2]} 24... Re8 {[%clk 0:03:03.3]} 25.
Be3 {[%clk 0:03:43.1]} 25... Nd4 {[%clk 0:02:53.7]} 26. Qd2 {[%clk 0:03:33]}
26... Nxe4 {[%clk 0:02:39.6]} 27. Nxe4 {[%clk 0:03:31.2]} 27... Bxe4 {[%clk
0:02:27.3]} 28. Bxd4 {[%clk 0:03:28.1]} 28... Bxd4 {[%clk 0:02:17.5]} 29. Rxe4
{[%clk 0:03:22.6]} 1-0

[Event "Live Chess"]
[Site "Chess.com"]
[Date "2024.06.01"]
[Round "-"]
[White "Stanbad1"]
[Black "KwikPhoenix"]
[Result "0-1"]
[WhiteElo "2679"]
[BlackElo "2456"]
[TimeControl "300"]
[EndTime "12:01:30 PDT"]
[Termination "KwikPhoenix won by resignation"]

1. d4 {[%clk 0:04:58.9]} 1... f5 {[%clk 0:04:56.5]} 2. Nc3 {[%clk 0:04:58]} 2...
e6 {[%clk 0:04:55]} 3. Bg5 {[%clk 0:04:57.6]} 3... Qxg5 {[%clk 0:04:53.7]} 4.
Nf3 {[%clk 0:04:54.3]} 4... Qd8 {[%clk 0:04:52.1]} 5. e4 {[%clk 0:04:53.9]} 5...
fxe4 {[%clk 0:04:51.4]} 6. Nxe4 {[%clk 0:04:53.8]} 6... Nf6 {[%clk 0:04:49.8]}
7. Ng3 {[%clk 0:04:52.2]} 7... d6 {[%clk 0:04:47.3]} 8. Bd3 {[%clk 0:04:51.7]}
8... Nc6 {[%clk 0:04:42.7]} 9. c3 {[%clk 0:04:51.1]} 9... e5 {[%clk 0:04:42]}
10. Qe2 {[%clk 0:04:48.3]} 10... Qe7 {[%clk 0:04:39.5]} 11. O-O-O {[%clk
0:04:45.3]} 11... e4 {[%clk 0:04:20.9]} 12. Nxe4 {[%clk 0:04:42.9]} 12... Nxe4
{[%clk 0:04:20.5]} 13. Bxe4 {[%clk 0:04:40.6]} 13... d5 {[%clk 0:04:19.7]} 14.
Bd3 {[%clk 0:04:39.9]} 14... Qxe2 {[%clk 0:04:19.2]} 15. Bxe2 {[%clk 0:04:39.8]}
15... Bg4 {[%clk 0:04:15.6]} 16. h3 {[%clk 0:04:38.4]} 16... Bxf3 {[%clk
0:04:14.6]} 17. Bxf3 {[%clk 0:04:38.3]} 17... O-O-O {[%clk 0:04:14]} 18. Rhe1
{[%clk 0:04:37.9]} 18... Bd6 {[%clk 0:04:12.8]} 19. Kc2 {[%clk 0:04:34]} 19...
Bf4 {[%clk 0:04:01.4]} 20. Bg4+ {[%clk 0:04:29.1]} 20... Kb8 {[%clk 0:03:59.1]}
21. b4 {[%clk 0:04:27.7]} 21... a6 {[%clk 0:03:52.5]} 22. a4 {[%clk 0:04:26.3]}
22... Rhe8 {[%clk 0:03:45.6]} 23. b5 {[%clk 0:04:23.4]} 23... axb5 {[%clk
0:03:42.5]} 24. axb5 {[%clk 0:04:23.3]} 24... Na5 {[%clk 0:03:42.1]} 25. Bf5
{[%clk 0:04:20]} 25... g6 {[%clk 0:03:38.5]} 26. Bg4 {[%clk 0:04:17.4]} 26...
Nc4 {[%clk 0:03:33.5]} 27. Kb3 {[%clk 0:04:13.1]} 27... Nd6 {[%clk 0:03:24.5]}
28. b6 {[%clk 0:04:10.3]} 28... cxb6 {[%clk 0:03:19.1]} 29. f3 {[%clk
0:04:07.5]} 29... Nc4 {[%clk 0:03:14.9]} 30. Be6 {[%clk 0:04:03]} 30... Kc7
{[%clk 0:02:58.8]} 31. Bf7 {[%clk 0:03:58.4]} 31... Rxe1 {[%clk 0:02:51.4]} 32.
Rxe1 {[%clk 0:03:58.3]} 32... Rd7 {[%clk 0:02:50.5]} 33. Bg8 {[%clk 0:03:56.3]}
33... b5 {[%clk 0:02:30]} 34. Kb4 {[%clk 0:03:53.2]} 34... Bd6+ {[%clk 0:02:10]}
35. Kxb5 {[%clk 0:03:51.1]} 35... Na3+ {[%clk 0:02:09.5]} 36. Ka4 {[%clk
0:03:49.7]} 36... Kc6 {[%clk 0:02:01.4]} 37. Re8 {[%clk 0:03:38.6]} 37... Nc4
{[%clk 0:01:54.5]} 38. Kb3 {[%clk 0:03:31.8]} 38... Bc7 {[%clk 0:01:49.4]} 39.
Rf8 {[%clk 0:03:23.6]} 39... b5 {[%clk 0:01:46.3]} 40. Rf6+ {[%clk 0:03:20.2]}
40... Bd6 {[%clk 0:01:39.3]} 41. h4 {[%clk 0:03:15.2]} 41... Ra7 {[%clk
0:01:37]} 42. h5 {[%clk 0:02:58.9]} 42... gxh5 {[%clk 0:01:32]} 43. Rh6 {[%clk
0:02:51.1]} 43... Ra3+ {[%clk 0:01:23.4]} 44. Kc2 {[%clk 0:02:49.8]} 44... Ra2+
{[%clk 0:01:23]} 45. Kb1 {[%clk 0:02:47.6]} 45... Rb2+ {[%clk 0:01:20.3]} 46.
Ka1 {[%clk 0:02:46.4]} 46... Rxg2 {[%clk 0:01:19.3]} 47. Bxh7 {[%clk 0:02:44]}
47... Rh2 {[%clk 0:01:13.1]} 48. Bg8 {[%clk 0:02:41.9]} 48... h4 {[%clk
0:01:08.6]} 49. Rh5 {[%clk 0:02:41]} 49... Nb6 {[%clk 0:01:05]} 50. Be6 {[%clk
0:02:39.8]} 50... Ba3 {[%clk 0:01:01]} 51. f4 {[%clk 0:02:36.8]} 51... Bb2+
{[%clk 0:00:59.7]} 52. Kb1 {[%clk 0:02:35.9]} 52... Na4 {[%clk 0:00:52.1]} 53.
Bxd5+ {[%clk 0:02:32.4]} 53... Kb6 {[%clk 0:00:50]} 54. Ka2 {[%clk 0:02:28.7]}
54... Nxc3+ {[%clk 0:00:47]} 55. Kb3 {[%clk 0:02:27.6]} 55... Nxd5 {[%clk
0:00:46]} 56. Rxd5 {[%clk 0:02:26.1]} 56... Bc1 {[%clk 0:00:44.7]} 57. f5 {[%clk
0:02:23.8]} 57... Rf2 {[%clk 0:00:40.1]} 58. Rd6+ {[%clk 0:02:22.3]} 58... Kc7
{[%clk 0:00:38.9]} 59. Rh6 {[%clk 0:02:21.5]} 59... Bxh6 {[%clk 0:00:38.1]} 0-1

[Event "Live Chess"]
[Site "Chess.com"]
[Date "2024.06.01"]
[Round "-"]
[White "CarmelJane"]
[Black "grandmaster1707"]
[Result "1-0"]
[WhiteElo "2083"]
[BlackElo "1470"]
[TimeControl "300"]
[EndTime "12:01:37 PDT"]
[Termination "CarmelJane won on time"]

1. e4 {[%clk 0:04:58.7]} 1... c5 {[%clk 0:04:58.5]} 2. Nf3 {[%clk 0:04:56.6]}
2... g6 {[%clk 0:04:57.3]} 3. c3 {[%clk 0:04:55.4]} 3... Bg7 {[%clk 0:04:56]} 4.
d4 {[%clk 0:04:55]} 4... cxd4 {[%clk 0:04:54.8]} 5. cxd4 {[%clk 0:04:54.9]} 5...
d6 {[%clk 0:04:53.2]} 6. Nc3 {[%clk 0:04:53]} 6... Nf6 {[%clk 0:04:52.3]} 7. h3
{[%clk 0:04:52.4]} 7... O-O {[%clk 0:04:50.5]} 8. Bg5 {[%clk 0:04:43.6]} 8... b6
{[%clk 0:04:43.7]} 9. Be2 {[%clk 0:04:42.9]} 9... Bb7 {[%clk 0:04:40.5]} 10. Bd3
{[%clk 0:04:42.1]} 10... Nbd7 {[%clk 0:04:39.8]} 11. O-O {[%clk 0:04:41.2]}
11... h6 {[%clk 0:04:37.6]} 12. Bd2 {[%clk 0:04:38.5]} 12... e5 {[%clk
0:04:35.9]} 13. d5 {[%clk 0:04:36.5]} 13... Nh5 {[%clk 0:04:32.1]} 14. Be3
{[%clk 0:04:33.5]} 14... Nf4 {[%clk 0:04:24.5]} 15. Bxf4 {[%clk 0:04:31.7]}
15... exf4 {[%clk 0:04:23.8]} 16. Nb5 {[%clk 0:04:31]} 16... Ne5 {[%clk
0:04:20.9]} 17. Nxe5 {[%clk 0:04:25.6]} 17... Bxe5 {[%clk 0:04:15.6]} 18. Rb1
{[%clk 0:04:10.8]} 18... Bc8 {[%clk 0:04:12.3]} 19. b3 {[%clk 0:04:07.8]} 19...
a6 {[%clk 0:03:38.2]} 20. Na3 {[%clk 0:04:05.4]} 20... b5 {[%clk 0:03:34.7]} 21.
Nc2 {[%clk 0:04:02.6]} 21... Kh7 {[%clk 0:03:27.5]} 22. Ne1 {[%clk 0:04:01.5]}
22... f5 {[%clk 0:02:10.4]} 23. Nf3 {[%clk 0:03:55.9]} 23... fxe4 {[%clk
0:02:07.5]} 24. Bxe4 {[%clk 0:03:53.4]} 24... Bf5 {[%clk 0:02:05.5]} 25. Qd3
{[%clk 0:03:41.7]} 25... Qf6 {[%clk 0:01:58.7]} 26. Rbc1 {[%clk 0:03:26.7]}
26... Rae8 {[%clk 0:01:54.9]} 27. Rc6 {[%clk 0:03:24.5]} 27... h5 {[%clk
0:01:41.2]} 28. Nxe5 {[%clk 0:03:15.2]} 28... Rxe5 {[%clk 0:01:38.8]} 29. Bxf5
{[%clk 0:03:13.9]} 29... Rxf5 {[%clk 0:01:37.7]} 30. Re1 {[%clk 0:02:56.9]}
30... f3 {[%clk 0:01:32.3]} 31. g3 {[%clk 0:02:55.1]} 31... Rg5 {[%clk
0:01:23.5]} 32. Kh2 {[%clk 0:02:49.4]} 32... h4 {[%clk 0:01:20.5]} 33. g4 {[%clk
0:02:36.3]} 33... Qf4+ {[%clk 0:01:19.5]} 34. Kh1 {[%clk 0:02:31.3]} 34... Rxg4
{[%clk 0:01:12.8]} 35. Rc7+ {[%clk 0:02:15.4]} 35... Kh6 {[%clk 0:01:08.7]} 36.
Qe3 {[%clk 0:02:13.6]} 36... Qxe3 {[%clk 0:01:06.1]} 37. Rxe3 {[%clk 0:02:12]}
37... Rd4 {[%clk 0:01:05]} 38. Rcc3 {[%clk 0:02:06.8]} 38... Rxd5 {[%clk
0:01:00.3]} 39. Rxf3 {[%clk 0:02:05.8]} 39... Rxf3 {[%clk 0:00:59]} 40. Rxf3
{[%clk 0:02:04.4]} 40... Rd2 {[%clk 0:00:58.4]} 41. Kg2 {[%clk 0:01:57.7]} 41...
g5 {[%clk 0:00:54.6]} 42. Rf6+ {[%clk 0:01:56.2]} 42... Kh5 {[%clk 0:00:53.4]}
43. a4 {[%clk 0:01:45.2]} 43... bxa4 {[%clk 0:00:36.2]} 44. bxa4 {[%clk
0:01:45.1]} 44... a5 {[%clk 0:00:27.6]} 45. Rf5 {[%clk 0:01:32.1]} 45... d5
{[%clk 0:00:22]} 46. Kf3 {[%clk 0:01:31.1]} 46... Kg6 {[%clk 0:00:18.9]} 47. Re5
{[%clk 0:01:29.3]} 47... Rd4 {[%clk 0:00:18.1]} 48. Ke3 {[%clk 0:01:26.9]} 48...
Rxa4 {[%clk 0:00:17]} 49. Rxd5 {[%clk 0:01:26.2]} 49... Ra3+ {[%clk 0:00:16.7]}
50. Ke2 {[%clk 0:01:19.4]} 50... Rc3 {[%clk 0:00:16]} 51. Rxa5 {[%clk
0:01:17.4]} 51... Rxh3 {[%clk 0:00:15.2]} 52. Ra6+ {[%clk 0:01:16.6]} 52... Kh5
{[%clk 0:00:14.2]} 53. Ra8 {[%clk 0:01:14.8]} 53... Rb3 {[%clk 0:00:13.4]} 54.
Rh8+ {[%clk 0:01:13.4]} 54... Kg4 {[%clk 0:00:13]} 55. Re8 {[%clk 0:01:07.2]}
55... h3 {[%clk 0:00:11.8]} 56. Re4+ {[%clk 0:01:04.9]} 56... Kf5 {[%clk
0:00:11.3]} 57. Re8 {[%clk 0:01:01.9]} 57... g4 {[%clk 0:00:08.6]} 58. Rf8+
{[%clk 0:01:01.3]} 58... Kg5 {[%clk 0:00:07.8]} 59. Rh8 {[%clk 0:01:00.9]} 59...
Kf4 {[%clk 0:00:07.4]} 60. Rf8+ {[%clk 0:00:59.2]} 60... Kg5 {[%clk 0:00:07.1]}
61. Rg8+ {[%clk 0:00:58.3]} 61... Kf4 {[%clk 0:00:06.8]} 62. Rh8 {[%clk
0:00:57.2]} 62... Kg5 {[%clk 0:00:06.5]} 63. Kd2 {[%clk 0:00:55.9]} 63... Kf4
{[%clk 0:00:06]} 64. Kc2 {[%clk 0:00:55.2]} 64... Rf3 {[%clk 0:00:05.6]} 65.
Rf8+ {[%clk 0:00:53.8]} 65... Kg5 {[%clk 0:00:05]} 66. Rg8+ {[%clk 0:00:53]}
66... Kf4 {[%clk 0:00:04.7]} 67. Rf8+ {[%clk 0:00:52.3]} 67... Ke4 {[%clk
0:00:04.5]} 68. Re8+ {[%clk 0:00:51.4]} 68... Kd5 {[%clk 0:00:04.4]} 69. Rd8+
{[%clk 0:00:50.7]} 69... Ke6 {[%clk 0:00:03.7]} 70. Re8+ {[%clk 0:00:49.9]}
70... Kf7 {[%clk 0:00:03.5]} 71. Rh8 {[%clk 0:00:49.1]} 71... Rxf2+ {[%clk
0:00:03.1]} 72. Kd3 {[%clk 0:00:48.9]} 72... h2 {[%clk 0:00:02.8]} 73. Ke3
{[%clk 0:00:48.4]} 73... g3 {[%clk 0:00:02.5]} 74. Rh7+ {[%clk 0:00:46.9]} 74...
Kg6 {[%clk 0:00:01.6]} 75. Rh3 {[%clk 0:00:46.5]} 75... Rg2 {[%clk 0:00:01.4]}
76. Kf3 {[%clk 0:00:45.3]} 76... Rg1 {[%clk 0:00:01.2]} 77. Kf4 {[%clk
0:00:40.9]} 1-0

[Event "Live Chess"]
[Site "Chess.com"]
[Date "2024.06.01"]
[Round "-"]
[White "Thebigsqueeze"]
[Black "Cruiseylee78"]
[Result "1-0"]
[WhiteElo "2305"]
[BlackElo "1706"]
[TimeControl "300"]
[EndTime "12:01:53 PDT"]
[Termination "Thebigsqueeze won by resignation"]

1. d4 {[%clk 0:04:52.8]} 1... d5 {[%clk 0:04:57.4]} 2. c4 {[%clk 0:04:51.5]}
2... Bf5 {[%clk 0:04:55.4]} 3. cxd5 {[%clk 0:04:50.3]} 3... Qxd5 {[%clk
0:04:54.2]} 4. Nc3 {[%clk 0:04:49.7]} 4... Qa5 {[%clk 0:04:52.9]} 5. Qb3 {[%clk
0:04:46.6]} 5... Qb6 {[%clk 0:04:41.4]} 6. e4 {[%clk 0:04:45.1]} 6... Bg6 {[%clk
0:04:39.9]} 7. Nd5 {[%clk 0:04:15.8]} 7... Qc6 {[%clk 0:04:28.2]} 8. Bb5 {[%clk
0:04:12]} 8... Bxe4 {[%clk 0:03:59.1]} 9. Bxc6+ {[%clk 0:04:08]} 9... bxc6
{[%clk 0:03:59]} 10. Nxc7+ {[%clk 0:04:06.9]} 10... Kd8 {[%clk 0:03:56.3]} 11.
Nxa8 {[%clk 0:04:04.7]} 1-0

[Event "Live Chess"]
[Site "Chess.com"]
[Date "2024.06.01"]
[Round "-"]
[White "A3ndrey9"]
[Black "elephantgerrald"]
[Result "0-1"]
[WhiteElo "1272"]
[BlackElo "786"]
[TimeControl "300"]
[EndTime "12:02:18 PDT"]
[Termination "elephantgerrald won on time"]

1. Nf3 {[%clk 0:04:58.8]} 1... d5 {[%clk 0:04:45]} 2. d4 {[%clk 0:04:58.7]} 2...
Nc6 {[%clk 0:04:43.4]} 3. g3 {[%clk 0:04:55.2]} 3... Bg4 {[%clk 0:04:41.6]} 4.
Bg2 {[%clk 0:04:54.9]} 4... Bxf3 {[%clk 0:04:33]} 5. Bxf3 {[%clk 0:04:54]} 5...
Nf6 {[%clk 0:04:31.9]} 6. Bf4 {[%clk 0:04:52.7]} 6... e6 {[%clk 0:04:30.6]} 7.
O-O {[%clk 0:04:48]} 7... Bd6 {[%clk 0:04:29.3]} 8. Bg5 {[%clk 0:04:45.6]} 8...
O-O {[%clk 0:04:21.4]} 9. Re1 {[%clk 0:04:44.6]} 9... h6 {[%clk 0:04:19.6]} 10.
Bxf6 {[%clk 0:04:43.6]} 10... Qxf6 {[%clk 0:04:18.1]} 11. e4 {[%clk 0:04:40.4]}
11... dxe4 {[%clk 0:04:16.1]} 12. Bxe4 {[%clk 0:04:35.7]} 12... e5 {[%clk
0:04:14.5]} 13. d5 {[%clk 0:04:18.7]} 13... Nd4 {[%clk 0:04:09.9]} 14. c4 {[%clk
0:04:12.6]} 14... Rac8 {[%clk 0:03:44.1]} 15. Nc3 {[%clk 0:04:10.6]} 15... c5
{[%clk 0:03:41.1]} 16. a3 {[%clk 0:04:00]} 16... b6 {[%clk 0:03:36.5]} 17. Nb5
{[%clk 0:03:57.5]} 17... Ra8 {[%clk 0:03:29.4]} 18. Nxd6 {[%clk 0:03:48]} 18...
Qxd6 {[%clk 0:03:27.3]} 19. Rb1 {[%clk 0:03:27]} 19... a5 {[%clk 0:03:06.9]} 20.
Qd3 {[%clk 0:03:05.2]} 20... f6 {[%clk 0:03:04]} 21. Bh7+ {[%clk 0:02:56.1]}
21... Kf7 {[%clk 0:02:57.4]} 22. Qg6+ {[%clk 0:02:52.2]} 22... Ke7 {[%clk
0:02:55.1]} 23. Qxg7+ {[%clk 0:02:48.7]} 23... Ke8 {[%clk 0:02:52.5]} 24. Bg6+
{[%clk 0:02:44.9]} 24... Kd8 {[%clk 0:02:49.1]} 25. Qb7 {[%clk 0:02:21]} 25...
Rb8 {[%clk 0:02:46.1]} 26. Qg7 {[%clk 0:01:55.9]} 26... Nf3+ {[%clk 0:02:34.7]}
27. Kg2 {[%clk 0:01:52]} 27... Nxe1+ {[%clk 0:02:31.8]} 28. Rxe1 {[%clk
0:01:51.6]} 28... b5 {[%clk 0:02:25.2]} 29. Qa7 {[%clk 0:01:25.3]} 29... f5
{[%clk 0:02:00.5]} 30. Qxa5+ {[%clk 0:01:21.6]} 30... Rb6 {[%clk 0:01:55.8]} 31.
cxb5 {[%clk 0:01:09.2]} 31... Qxg6 {[%clk 0:01:46.4]} 32. Qa8+ {[%clk
0:01:05.9]} 32... Ke7 {[%clk 0:01:42.4]} 33. Qa7+ {[%clk 0:01:03]} 33... Ke8
{[%clk 0:01:38.3]} 34. Rxe5+ {[%clk 0:00:59.9]} 34... Kd8 {[%clk 0:01:26.1]} 35.
Qe7+ {[%clk 0:00:55]} 35... Kc8 {[%clk 0:01:16.5]} 36. Qxc5+ {[%clk 0:00:53.4]}
36... Kd8 {[%clk 0:01:13.7]} 37. Qxf8+ {[%clk 0:00:52]} 37... Kd7 {[%clk
0:01:11.5]} 38. Re7+ {[%clk 0:00:36.5]} 38... Kd6 {[%clk 0:01:08.1]} 39. Qd8+
{[%clk 0:00:32.1]} 39... Kc5 {[%clk 0:01:05.4]} 40. a4 {[%clk 0:00:13.7]} 40...
Rd6 {[%clk 0:00:40.1]} 41. Qc7+ {[%clk 0:00:09.6]} 41... Kxd5 {[%clk 0:00:33.7]}
42. Qb7+ {[%clk 0:00:05.1]} 42... Kc5 {[%clk 0:00:30.3]} 43. Rc7+ {[%clk
0:00:03.6]} 43... Kb4 {[%clk 0:00:23.2]} 0-1

[Event "Live Chess"]
[Site "Chess.com"]
[Date "2024.06.01"]
[Round "-"]
[White "OurKnightAtTheOpera"]
[Black "degringolade64"]
[Result "0-1"]
[WhiteElo "2017"]
[BlackElo "2061"]
[TimeControl "300"]
[EndTime "12:02:21 PDT"]
[Termination "degringolade64 won by resignation"]

1. e4 {[%clk 0:04:59.8]} 1... e5 {[%clk 0:04:57.9]} 2. Bc4 {[%clk 0:04:58.9]}
2... Nf6 {[%clk 0:04:55.8]} 3. d3 {[%clk 0:04:58.4]} 3... Bc5 {[%clk 0:04:53.9]}
4. Nf3 {[%clk 0:04:58]} 4... d6 {[%clk 0:04:48]} 5. O-O {[%clk 0:04:57.3]} 5...
h6 {[%clk 0:04:46.2]} 6. c3 {[%clk 0:04:56.7]} 6... c6 {[%clk 0:04:39.5]} 7. a4
{[%clk 0:04:55.1]} 7... a5 {[%clk 0:04:36.5]} 8. Nbd2 {[%clk 0:04:53.7]} 8...
O-O {[%clk 0:04:33.7]} 9. h3 {[%clk 0:04:52.2]} 9... Re8 {[%clk 0:04:17.9]} 10.
Re1 {[%clk 0:04:35.4]} 10... Nbd7 {[%clk 0:04:13.3]} 11. Nf1 {[%clk 0:04:33.2]}
11... Nf8 {[%clk 0:04:02.9]} 12. Ng3 {[%clk 0:04:32.2]} 12... Qc7 {[%clk
0:03:20.8]} 13. Nh4 {[%clk 0:04:19.9]} 13... d5 {[%clk 0:03:15.4]} 14. Ba2
{[%clk 0:04:17.3]} 14... Be6 {[%clk 0:02:55.4]} 15. Nhf5 {[%clk 0:04:12.6]}
15... dxe4 {[%clk 0:02:36.5]} 16. dxe4 {[%clk 0:04:12.5]} 16... Bxa2 {[%clk
0:02:34.8]} 17. Rxa2 {[%clk 0:04:07.8]} 17... Ng6 {[%clk 0:02:08.5]} 18. Qf3
{[%clk 0:04:04.8]} 18... Nf4 {[%clk 0:02:06.9]} 19. Ne2 {[%clk 0:03:43.6]} 19...
Nxe2+ {[%clk 0:01:31.8]} 20. Rxe2 {[%clk 0:03:41.6]} 20... Qd8 {[%clk
0:01:27.8]} 21. Qg3 {[%clk 0:03:04.1]} 21... Qd1+ {[%clk 0:01:24.2]} 22. Kh2
{[%clk 0:03:00.9]} 22... g6 {[%clk 0:01:10.8]} 23. Nxh6+ {[%clk 0:02:45.1]}
23... Kf8 {[%clk 0:01:09.8]} 24. b4 {[%clk 0:02:44.4]} 24... Qxc1 {[%clk
0:01:04]} 25. bxc5 {[%clk 0:02:41.1]} 25... Qxh6 {[%clk 0:01:02.8]} 26. Rab2
{[%clk 0:02:30.5]} 26... Re7 {[%clk 0:01:00.6]} 27. f3 {[%clk 0:02:22.3]} 27...
Qf4 {[%clk 0:00:59.3]} 28. Qxf4 {[%clk 0:02:20.8]} 28... exf4 {[%clk 0:00:59.2]}
29. Rb6 {[%clk 0:02:14]} 29... Rd8 {[%clk 0:00:57.4]} 30. Reb2 {[%clk
0:02:12.6]} 30... Rdd7 {[%clk 0:00:55.7]} 31. g3 {[%clk 0:02:00.4]} 31... fxg3+
{[%clk 0:00:53.9]} 32. Kg2 {[%clk 0:01:59.8]} 32... Ne8 {[%clk 0:00:52.8]} 33.
Kxg3 {[%clk 0:01:50.6]} 33... Ng7 {[%clk 0:00:52.4]} 34. Kf4 {[%clk 0:01:34.2]}
34... Ne6+ {[%clk 0:00:52]} 35. Ke3 {[%clk 0:01:32.8]} 35... Nxc5 {[%clk
0:00:51.1]} 36. Ra2 {[%clk 0:01:29.8]} 36... Rd3+ {[%clk 0:00:47.2]} 37. Ke2
{[%clk 0:01:29.4]} 37... Red7 {[%clk 0:00:45.5]} 38. Rbb2 {[%clk 0:01:23.1]}
38... Rxc3 {[%clk 0:00:42.5]} 39. Rc2 {[%clk 0:01:21.9]} 39... Rxc2+ {[%clk
0:00:41.5]} 40. Rxc2 {[%clk 0:01:21.8]} 40... b6 {[%clk 0:00:40.8]} 41. Ra2
{[%clk 0:01:21.7]} 41... Rd4 {[%clk 0:00:39.2]} 42. Rb2 {[%clk 0:01:19.2]} 42...
Nxa4 {[%clk 0:00:36.4]} 43. Rc2 {[%clk 0:01:17.8]} 43... c5 {[%clk 0:00:35.2]}
44. Ra2 {[%clk 0:01:16.6]} 44... Nc3+ {[%clk 0:00:33.2]} 0-1

[Event "Live Chess"]
[Site "Chess.com"]
[Date "2024.06.01"]
[Round "-"]
[White "Ksenia_2013"]
[Black "Duke_of_Bebington"]
[Result "0-1"]
[WhiteElo "766"]
[BlackElo "1599"]
[TimeControl "300"]
[EndTime "12:02:40 PDT"]
[Termination "Duke_of_Bebington won by checkmate"]

1. e4 {[%clk 0:04:57.7]} 1... e5 {[%clk 0:04:58.9]} 2. Nf3 {[%clk 0:04:56.6]}
2... Nf6 {[%clk 0:04:57.2]} 3. Bc4 {[%clk 0:04:55.5]} 3... Nc6 {[%clk
0:04:55.2]} 4. Ng5 {[%clk 0:04:54.4]} 4... d5 {[%clk 0:04:53.2]} 5. exd5 {[%clk
0:04:51.6]} 5... Nd4 {[%clk 0:04:52.7]} 6. d6 {[%clk 0:04:47.9]} 6... Qxd6
{[%clk 0:04:51.3]} 7. Nxf7 {[%clk 0:04:44.9]} 7... Qc6 {[%clk 0:04:48.6]} 8.
Nxh8 {[%clk 0:04:41.8]} 8... Qxg2 {[%clk 0:04:24.4]} 9. Bf7+ {[%clk 0:04:34.1]}
9... Kd8 {[%clk 0:04:13.4]} 10. Rf1 {[%clk 0:04:30.6]} 10... Nf3+ {[%clk
0:04:01.5]} 11. Ke2 {[%clk 0:04:25.4]} 11... Bg4 {[%clk 0:04:00.2]} 12. Bd5
{[%clk 0:04:19.5]} 12... Nxd5 {[%clk 0:03:27.6]} 13. Nf7+ {[%clk 0:04:11.9]}
13... Ke8 {[%clk 0:03:18.9]} 14. Nxe5 {[%clk 0:04:08.7]} 14... Nxe5+ {[%clk
0:03:10.8]} 15. Ke1 {[%clk 0:04:06.6]} 15... Bxd1 {[%clk 0:03:06.6]} 16. Kxd1
{[%clk 0:04:04.8]} 16... Qxf1# {[%clk 0:03:01.8]} 0-1